[Event "Torneo Nuevo Centro. Jornada 10"]
[Site "Chess.com"]
[Date "2020.08.21"]
[Round "1"]
[White "Méndez Giménez , Néstor Emmanuel"]
[Black "Castellano López, Javier"]
[Result "0-1"]
[WhiteElo "1236"]
[BlackElo "1902"]
[TimeControl "180+2"]
[EndTime "10:37:16 PDT"]
[Termination "Victoria de its_xavi_official por jaque mate"]

1. e4 {[%clk 0:02:58.1]} 1... c6 {[%clk 0:02:58.5]} 2. Nf3 {[%clk 0:02:57.6]}
2... d5 {[%clk 0:03:00.4]} 3. Nc3 {[%clk 0:02:57.2]} 3... Bg4 {[%clk 0:03:00.4]}
4. exd5 {[%clk 0:02:56.3]} 4... cxd5 {[%clk 0:03:00.4]} 5. h3 {[%clk 0:02:55.7]}
5... Bxf3 {[%clk 0:02:53.9]} 6. Qxf3 {[%clk 0:02:54.7]} 6... e6 {[%clk
0:02:54.5]} 7. Bb5+ {[%clk 0:02:45.4]} 7... Nc6 {[%clk 0:02:54.1]} 8. Bxc6+
{[%clk 0:02:43.8]} 8... bxc6 {[%clk 0:02:56]} 9. O-O {[%clk 0:02:15]} 9... Nf6
{[%clk 0:02:55.6]} 10. d4 {[%clk 0:02:14.3]} 10... Bd6 {[%clk 0:02:55.5]} 11.
Bf4 {[%clk 0:02:12.7]} 11... O-O {[%clk 0:02:53.3]} 12. Bg5 {[%clk 0:02:06.8]}
12... h6 {[%clk 0:02:53.1]} 13. Bxf6 {[%clk 0:02:06.5]} 13... Qxf6 {[%clk
0:02:54.2]} 14. Qxf6 {[%clk 0:02:06.8]} 14... gxf6 {[%clk 0:02:56.1]} 15. Kh1
{[%clk 0:02:05.6]} 15... Rab8 {[%clk 0:02:55.8]} 16. b3 {[%clk 0:02:04.5]} 16...
c5 {[%clk 0:02:54.5]} 17. Rfd1 {[%clk 0:01:58.8]} 17... cxd4 {[%clk 0:02:55]}
18. Rxd4 {[%clk 0:01:58.7]} 18... Be5 {[%clk 0:02:56.5]} 19. Rd3 {[%clk
0:01:57.6]} 19... Rfc8 {[%clk 0:02:57.7]} 20. Nxd5 {[%clk 0:01:38.4]} 20... Bxa1
{[%clk 0:02:52.7]} 21. Ne7+ {[%clk 0:01:37.5]} 21... Kf8 {[%clk 0:02:49.7]} 22.
Nxc8 {[%clk 0:01:35.6]} 22... Rxc8 {[%clk 0:02:51.6]} 23. Kh2 {[%clk 0:01:33.1]}
23... Rxc2 {[%clk 0:02:51.5]} 24. Rd8+ {[%clk 0:01:30.8]} 24... Ke7 {[%clk
0:02:52.1]} 25. Ra8 {[%clk 0:01:31.1]} 25... Rxa2 {[%clk 0:02:53.2]} 26. b4
{[%clk 0:01:31.6]} 26... Be5+ {[%clk 0:02:51.3]} 27. g3 {[%clk 0:01:27.8]} 27...
Rxf2+ {[%clk 0:02:52.1]} 28. Kg1 {[%clk 0:01:28.6]} 28... Ra2 {[%clk 0:02:50.4]}
29. b5 {[%clk 0:01:24.8]} 29... Bxg3 {[%clk 0:02:50.2]} 30. b6 {[%clk 0:01:20]}
30... Bf2+ {[%clk 0:02:51.6]} 31. Kf1 {[%clk 0:01:19.3]} 31... Bxb6 {[%clk
0:02:52.5]} 32. h4 {[%clk 0:01:18.1]} 32... Ra4 {[%clk 0:02:53.3]} 33. Ke2
{[%clk 0:01:18.6]} 33... Rxh4 {[%clk 0:02:54.3]} 34. Kf3 {[%clk 0:01:19.2]}
34... f5 {[%clk 0:02:55.7]} 35. Kg3 {[%clk 0:01:19.9]} 35... Rg4+ {[%clk
0:02:57]} 36. Kf3 {[%clk 0:01:20]} 36... Kf6 {[%clk 0:02:58.6]} 37. Rb8 {[%clk
0:01:14.5]} 37... h5 {[%clk 0:02:58.4]} 38. Rh8 {[%clk 0:01:12.5]} 38... h4
{[%clk 0:02:57.2]} 39. Rh6+ {[%clk 0:01:11.8]} 39... Ke5 {[%clk 0:02:57.4]} 40.
Rh7 {[%clk 0:01:04.9]} 40... Rg3+ {[%clk 0:02:57.5]} 41. Ke2 {[%clk 0:01:04.1]}
41... h3 {[%clk 0:02:58.4]} 42. Kf1 {[%clk 0:01:01.9]} 42... Rg1+ {[%clk
0:02:57.7]} 43. Ke2 {[%clk 0:01:02]} 43... Rg2+ {[%clk 0:02:58.9]} 44. Kf1
{[%clk 0:01:01.1]} 44... Rf2+ {[%clk 0:03:00.2]} 45. Ke1 {[%clk 0:00:58.8]}
45... h2 {[%clk 0:03:01.7]} 46. Rh3 {[%clk 0:00:52.7]} 46... Ra2 {[%clk
0:03:01.9]} 47. Kf1 {[%clk 0:00:43.1]} 47... Ra1+ {[%clk 0:02:57.9]} 48. Kg2
{[%clk 0:00:43.6]} 48... h1=Q+ {[%clk 0:02:58.4]} 49. Rxh1 {[%clk 0:00:44.4]}
49... Rxh1 {[%clk 0:03:00.1]} 50. Kxh1 {[%clk 0:00:45.1]} 50... a6 {[%clk
0:03:02]} 51. Kg2 {[%clk 0:00:45.2]} 51... a5 {[%clk 0:03:03.9]} 52. Kf3 {[%clk
0:00:45.8]} 52... a4 {[%clk 0:03:05.8]} 53. Ke2 {[%clk 0:00:46.4]} 53... a3
{[%clk 0:03:07.7]} 54. Kd2 {[%clk 0:00:47.3]} 54... a2 {[%clk 0:03:09.6]} 55.
Kc2 {[%clk 0:00:47.4]} 55... a1=Q {[%clk 0:03:10.3]} 56. Kb3 {[%clk 0:00:48.5]}
56... Qb1+ {[%clk 0:03:09.9]} 57. Kc3 {[%clk 0:00:45.5]} 57... Bd4+ {[%clk
0:03:09.9]} 58. Kd2 {[%clk 0:00:44.2]} 58... Qb2+ {[%clk 0:03:09.1]} 59. Kd3
{[%clk 0:00:43.3]} 59... Qc3+ {[%clk 0:03:09.7]} 60. Ke2 {[%clk 0:00:42.1]}
60... Qe3+ {[%clk 0:03:11.2]} 61. Kd1 {[%clk 0:00:40.3]} 61... Qf2 {[%clk
0:03:08.9]} 62. Kc1 {[%clk 0:00:40.5]} 62... Qe2 {[%clk 0:03:09.7]} 63. Kb1
{[%clk 0:00:40.1]} 63... Qb2# {[%clk 0:03:11.6]} 0

[Event "Torneo Nuevo Centro. Jornada 10"]
[Site "Chess.com"]
[Date "2020.08.21"]
[Round "1"]
[White "Camison Zornoza, Cesar"]
[Black "Sos Andreu, Eric"]
[Result "0-1"]
[WhiteElo "1791"]
[BlackElo "2519"]
[TimeControl "180+2"]
[EndTime "10:37:33 PDT"]
[Termination "Victoria de ericovski por abandono"]

1. e4 {[%clk 0:03:00.5]} 1... c6 {[%clk 0:03:00.1]} 2. d4 {[%clk 0:03:01]} 2...
d5 {[%clk 0:03:01.3]} 3. Nc3 {[%clk 0:03:01.5]} 3... dxe4 {[%clk 0:03:02.1]} 4.
Nxe4 {[%clk 0:03:02.8]} 4... Bf5 {[%clk 0:03:02.1]} 5. Ng3 {[%clk 0:03:03.9]}
5... Bg6 {[%clk 0:03:03.3]} 6. Nf3 {[%clk 0:03:05.3]} 6... Nd7 {[%clk
0:03:03.6]} 7. Bc4 {[%clk 0:03:06.1]} 7... e6 {[%clk 0:03:03.8]} 8. h4 {[%clk
0:03:07.2]} 8... h6 {[%clk 0:03:00.8]} 9. h5 {[%clk 0:03:08.1]} 9... Bh7 {[%clk
0:03:02.1]} 10. Qe2 {[%clk 0:03:06.3]} 10... Ngf6 {[%clk 0:03:02.2]} 11. Bf4
{[%clk 0:03:06.4]} 11... Be7 {[%clk 0:02:59.1]} 12. O-O-O {[%clk 0:03:07.3]}
12... O-O {[%clk 0:02:59.7]} 13. Rhe1 {[%clk 0:03:06.1]} 13... Nb6 {[%clk
0:03:00.7]} 14. Bxe6 {[%clk 0:02:58.9]} 14... fxe6 {[%clk 0:03:02.6]} 15. Qxe6+
{[%clk 0:02:59.6]} 15... Kh8 {[%clk 0:02:51.3]} 16. Qxe7 {[%clk 0:03:00.6]}
16... Qxe7 {[%clk 0:02:52.3]} 17. Rxe7 {[%clk 0:03:01.5]} 17... Nfd5 {[%clk
0:02:52.1]} 18. Bd6 {[%clk 0:02:45.6]} 18... Nxe7 {[%clk 0:02:44.6]} 19. Bxe7
{[%clk 0:02:46.7]} 19... Rfe8 {[%clk 0:02:45.2]} 20. Bc5 {[%clk 0:02:42.6]}
20... Nd7 {[%clk 0:02:43.9]} 21. Bd6 {[%clk 0:02:41.6]} 21... Re6 {[%clk
0:02:37.6]} 22. Ba3 {[%clk 0:02:42.1]} 22... Rae8 {[%clk 0:02:35.8]} 23. Nf1
{[%clk 0:02:32.4]} 23... Re2 {[%clk 0:02:28]} 24. Rd2 {[%clk 0:02:22.5]} 24...
Nb6 {[%clk 0:02:18.8]} 25. b3 {[%clk 0:02:18.3]} 25... Nd5 {[%clk 0:02:14.5]}
26. Ng3 {[%clk 0:02:17.3]} 26... Rxd2 {[%clk 0:02:04.1]} 27. Kxd2 {[%clk
0:02:17.9]} 27... Nf4 {[%clk 0:02:05.3]} 28. Ne5 {[%clk 0:02:16.8]} 28... Kg8
{[%clk 0:01:57.8]} 29. Ne2 {[%clk 0:02:07.8]} 29... Nxe2 {[%clk 0:01:54.6]} 30.
Kxe2 {[%clk 0:02:08.9]} 30... Bxc2 {[%clk 0:01:55.8]} 31. Kd2 {[%clk 0:02:07.6]}
31... Bb1 {[%clk 0:01:54]} 32. Bb2 {[%clk 0:01:55.8]} 32... Bxa2 {[%clk
0:01:48.6]} 33. b4 {[%clk 0:01:56.9]} 33... Bd5 {[%clk 0:01:48.6]} 34. g3 {[%clk
0:01:57.5]} 34... b6 {[%clk 0:01:37.1]} 35. f4 {[%clk 0:01:57.4]} 35... a5
{[%clk 0:01:36.7]} 36. bxa5 {[%clk 0:01:57.6]} 36... bxa5 {[%clk 0:01:38.6]} 37.
Ba3 {[%clk 0:01:54.1]} 37... a4 {[%clk 0:01:37.2]} 38. g4 {[%clk 0:01:46.4]}
38... Rb8 {[%clk 0:01:37]} 39. Bd6 {[%clk 0:01:42.3]} 39... Rb3 {[%clk
0:01:29.9]} 40. g5 {[%clk 0:01:36.8]} 40... hxg5 {[%clk 0:01:31.8]} 41. fxg5
{[%clk 0:01:37.6]} 41... a3 {[%clk 0:01:32.4]} 42. Bxa3 {[%clk 0:01:37.9]} 42...
Rxa3 {[%clk 0:01:32.9]} 43. h6 {[%clk 0:01:39]} 43... gxh6 {[%clk 0:01:33.8]}
44. gxh6 {[%clk 0:01:40.4]} 44... Rh3 {[%clk 0:01:32.8]} 45. Ng4 {[%clk
0:01:36.8]} 45... Rh4 {[%clk 0:01:33.5]} 46. Nf6+ {[%clk 0:01:37.7]} 46... Kf7
{[%clk 0:01:34.3]} 47. Nd7 {[%clk 0:01:36.7]} 47... Rxh6 {[%clk 0:01:34.2]} 48.
Ne5+ {[%clk 0:01:37.9]} 48... Ke6 {[%clk 0:01:35]} 49. Ke3 {[%clk 0:01:39.3]}
49... Rh4 {[%clk 0:01:34.6]} 50. Nd3 {[%clk 0:01:37.3]} 50... Rh3+ {[%clk
0:01:34.8]} 51. Kd2 {[%clk 0:01:37.7]} 51... Rxd3+ {[%clk 0:01:36.4]} 52. Kxd3
{[%clk 0:01:38.9]} 52... Kf5 {[%clk 0:01:38.3]} 53. Ke3 {[%clk 0:01:38.7]} 53...
Kg4 {[%clk 0:01:38.9]} 54. Ke2 {[%clk 0:01:37.5]} 54... Kf4 {[%clk 0:01:40.8]}
55. Kd3 {[%clk 0:01:38.6]} 55... Kf3 {[%clk 0:01:42.5]} 56. Kd2 {[%clk
0:01:38.7]} 56... Ke4 {[%clk 0:01:44.4]} 57. Kc3 {[%clk 0:01:39.7]} 57... Ke3
{[%clk 0:01:46.3]} 58. Kc2 {[%clk 0:01:38.5]} 58... Kxd4 {[%clk 0:01:48.2]} 59.
Kd2 {[%clk 0:01:39.7]} 59... c5 {[%clk 0:01:49.9]} 60. Kc2 {[%clk 0:01:40.5]}
60... c4 {[%clk 0:01:51.8]} 61. Kd2 {[%clk 0:01:41.9]} 61... c3+ {[%clk
0:01:53.7]} 62. Kd1 {[%clk 0:01:42.6]} 62... Kd3 {[%clk 0:01:54.3]} 63. Kc1
{[%clk 0:01:43.6]} 63... c2 {[%clk 0:01:54.8]} 64. Kb2 {[%clk 0:01:44.4]} 64...
Kd2 {[%clk 0:01:55]} 65. Ka3 {[%clk 0:01:40.8]} 65... c1=Q+ {[%clk 0:01:56.1]}
0

[Event "Torneo Nuevo Centro. Jornada 10"]
[Site "Chess.com"]
[Date "2020.08.21"]
[Round "1"]
[White "Zamora Soler, Raul"]
[Black "Grigorev, Artur "]
[Result "1-0"]
[WhiteElo "1849"]
[BlackElo "946"]
[TimeControl "180+2"]
[EndTime "10:37:33 PDT"]
[Termination "Victoria de rzamora80 por abandono"]

1. e4 {[%clk 0:03:01.8]} 1... e5 {[%clk 0:02:57.4]} 2. Nf3 {[%clk 0:03:02.6]}
2... Nc6 {[%clk 0:02:57]} 3. d4 {[%clk 0:03:03.3]} 3... d6 {[%clk 0:02:55]} 4.
dxe5 {[%clk 0:03:04.3]} 4... dxe5 {[%clk 0:02:46.2]} 5. Qxd8+ {[%clk 0:03:04.6]}
5... Nxd8 {[%clk 0:02:46.8]} 6. Nxe5 {[%clk 0:03:04.9]} 6... Nf6 {[%clk
0:02:47.4]} 7. Bd3 {[%clk 0:03:03.4]} 7... Bc5 {[%clk 0:02:35]} 8. O-O {[%clk
0:03:03.3]} 8... O-O {[%clk 0:02:27.2]} 9. c4 {[%clk 0:02:38.8]} 9... Ne6 {[%clk
0:02:11.5]} 10. Nc3 {[%clk 0:02:37.8]} 10... Nf4 {[%clk 0:02:00.6]} 11. Bc2
{[%clk 0:02:35.8]} 11... Ng4 {[%clk 0:01:45.4]} 12. Nxg4 {[%clk 0:02:29.9]}
12... Bxg4 {[%clk 0:01:37.6]} 13. Bxf4 {[%clk 0:02:30.4]} 13... c6 {[%clk
0:01:25.7]} 14. h3 {[%clk 0:02:31]} 14... Be6 {[%clk 0:01:12.6]} 15. Bd3 {[%clk
0:02:18.8]} 15... Rad8 {[%clk 0:01:07.1]} 16. Be2 {[%clk 0:02:19.1]} 16... Bd4
{[%clk 0:00:46.6]} 17. Rad1 {[%clk 0:02:16.5]} 17... Bxc3 {[%clk 0:00:37.3]} 18.
bxc3 {[%clk 0:02:16.9]} 18... Rxd1 {[%clk 0:00:36.3]} 19. Rxd1 {[%clk
0:02:17.6]} 19... Re8 {[%clk 0:00:33.9]} 20. Bc7 {[%clk 0:02:16.7]} 20... h6
{[%clk 0:00:29.7]} 21. Rd8 {[%clk 0:02:17]} 21... Rxd8 {[%clk 0:00:24.5]} 22.
Bxd8 {[%clk 0:02:17.8]} 22... Bc8 {[%clk 0:00:19]} 23. a3 {[%clk 0:02:17.9]}
23... Bd7 {[%clk 0:00:19.2]} 24. c5 {[%clk 0:02:18.8]} 24... Bc8 {[%clk
0:00:19.9]} 25. Be7 {[%clk 0:02:16.5]} 25... Bd7 {[%clk 0:00:20.4]} 26. Bc4
{[%clk 0:02:17.2]} 26... Bc8 {[%clk 0:00:20.9]} 27. Bd6 {[%clk 0:02:18.2]} 27...
Bd7 {[%clk 0:00:21.8]} 28. e5 {[%clk 0:02:19.3]} 28... Bc8 {[%clk 0:00:22.6]}
29. Bb8 {[%clk 0:02:20.3]} 29... Bd7 {[%clk 0:00:23.2]} 30. Bxa7 {[%clk
0:02:21]} 30... Bc8 {[%clk 0:00:23.6]} 31. Bb8 {[%clk 0:02:21.6]} 31... Bd7
{[%clk 0:00:24.4]} 32. a4 {[%clk 0:02:23]} 32... Bc8 {[%clk 0:00:24.9]} 33. f4
{[%clk 0:02:24.3]} 33... Bd7 {[%clk 0:00:25.1]} 34. g4 {[%clk 0:02:25.5]} 34...
Bc8 {[%clk 0:00:26]} 35. f5 {[%clk 0:02:26.5]} 35... Bd7 {[%clk 0:00:24.2]} 36.
e6 {[%clk 0:02:27.5]} 36... fxe6 {[%clk 0:00:24.6]} 37. Bxe6+ {[%clk 0:02:27.8]}
37... Bxe6 {[%clk 0:00:25]} 38. fxe6 {[%clk 0:02:29]} 38... Kf8 {[%clk
0:00:26.1]} 39. Bd6+ {[%clk 0:02:29.5]} 39... Ke8 {[%clk 0:00:26.8]} 40. h4
{[%clk 0:02:30.6]} 40... Kd8 {[%clk 0:00:26.4]} 41. Bf8 {[%clk 0:02:31.2]} 41...
Ke8 {[%clk 0:00:27]} 42. Bxg7 {[%clk 0:02:32]} 42... Ke7 {[%clk 0:00:28.1]} 43.
Bxh6 {[%clk 0:02:33]} 43... Kxe6 {[%clk 0:00:28.8]} 44. Be3 {[%clk 0:02:33.6]}
44... Kf6 {[%clk 0:00:29.5]} 45. Kf2 {[%clk 0:02:33.5]} 45... Ke5 {[%clk
0:00:30]} 46. h5 {[%clk 0:02:34.6]} 46... Kf6 {[%clk 0:00:30.7]} 47. g5+ {[%clk
0:02:35.3]} 47... Kg7 {[%clk 0:00:30.8]} 48. g6 {[%clk 0:02:35.7]} 48... Kh8
{[%clk 0:00:31]} 49. Bd4+ {[%clk 0:02:35.7]} 49... Kg8 {[%clk 0:00:31]} 50. h6
{[%clk 0:02:36.9]} 50... Kf8 {[%clk 0:00:31.2]} 51. h7 {[%clk 0:02:36.4]} 51...
Ke8 {[%clk 0:00:30.7]} 52. h8=Q+ {[%clk 0:02:36.8]} 52... Ke7 {[%clk 0:00:32]}
53. Qf6+ {[%clk 0:02:37.4]} 53... Ke8 {[%clk 0:00:32.5]} 54. g7 {[%clk
0:02:38.2]} 54... Kd7 {[%clk 0:00:31.7]} 55. g8=Q {[%clk 0:02:38.5]} 1

[Event "Torneo Nuevo Centro. Jornada 10"]
[Site "Chess.com"]
[Date "2020.08.21"]
[Round "1"]
[White "Mellado Sais, Carles"]
[Black "Bosch Jordà, Ricard"]
[Result "0-1"]
[WhiteElo "1368"]
[BlackElo "1944"]
[TimeControl "180+2"]
[EndTime "10:37:48 PDT"]
[Termination "Victoria de UltimateLimo por abandono"]

1. d4 {[%clk 0:02:59.6]} 1... Nf6 {[%clk 0:02:58.4]} 2. c4 {[%clk 0:02:55.6]}
2... c5 {[%clk 0:02:57.1]} 3. d5 {[%clk 0:02:55.2]} 3... b5 {[%clk 0:02:57.7]}
4. Qc2 {[%clk 0:02:53.9]} 4... g6 {[%clk 0:02:56.3]} 5. e3 {[%clk 0:02:48.4]}
5... d6 {[%clk 0:02:54.4]} 6. Nc3 {[%clk 0:02:46.8]} 6... a6 {[%clk 0:02:54.1]}
7. Nf3 {[%clk 0:02:41.4]} 7... Bg7 {[%clk 0:02:54.6]} 8. Bd3 {[%clk 0:02:39.3]}
8... O-O {[%clk 0:02:55.2]} 9. O-O {[%clk 0:02:38.2]} 9... Nbd7 {[%clk
0:02:50.8]} 10. b3 {[%clk 0:02:31.8]} 10... Ng4 {[%clk 0:02:47]} 11. Bb2 {[%clk
0:02:26]} 11... Nge5 {[%clk 0:02:26.8]} 12. Nxe5 {[%clk 0:02:22]} 12... Nxe5
{[%clk 0:02:28.7]} 13. f4 {[%clk 0:02:17.8]} 13... Nxd3 {[%clk 0:02:24.4]} 14.
Qxd3 {[%clk 0:02:14.7]} 14... Bf5 {[%clk 0:02:19]} 15. e4 {[%clk 0:02:12.6]}
15... Bd7 {[%clk 0:01:53.3]} 16. f5 {[%clk 0:02:11.9]} 16... bxc4 {[%clk
0:01:52.7]} 17. bxc4 {[%clk 0:02:11.6]} 17... Rb8 {[%clk 0:01:51.5]} 18. Rab1
{[%clk 0:02:08.6]} 18... Qa5 {[%clk 0:01:51.7]} 19. Rfc1 {[%clk 0:02:01.9]}
19... Rb7 {[%clk 0:01:37.1]} 20. fxg6 {[%clk 0:01:46.8]} 20... hxg6 {[%clk
0:01:33.1]} 21. Qc2 {[%clk 0:01:43.4]} 21... Rfb8 {[%clk 0:01:28]} 22. Ba1
{[%clk 0:01:21.4]} 22... Rxb1 {[%clk 0:01:19.3]} 23. Rxb1 {[%clk 0:01:20.1]}
23... Rxb1+ {[%clk 0:01:20]} 24. Qxb1 {[%clk 0:01:02]} 24... Bxc3 {[%clk
0:01:19.1]} 25. Bxc3 {[%clk 0:00:59.8]} 25... Qxc3 {[%clk 0:01:21]} 26. Qb8+
{[%clk 0:00:59.6]} 26... Kg7 {[%clk 0:01:21.7]} 27. Qb1 {[%clk 0:00:55.5]} 27...
Qxc4 {[%clk 0:01:18.1]} 28. h3 {[%clk 0:00:50.3]} 28... Bb5 {[%clk 0:01:16.9]}
29. Kh2 {[%clk 0:00:48.2]} 29... Qd3 {[%clk 0:01:15.3]} 30. Qb2+ {[%clk
0:00:45.5]} 30... Qd4 {[%clk 0:01:16.3]} 31. Qb1 {[%clk 0:00:44.5]} 31... Bd3
{[%clk 0:01:14.2]} 32. Qe1 {[%clk 0:00:35]} 32... Qxe4 {[%clk 0:01:09.8]} 33.
Qc3+ {[%clk 0:00:32.2]} 33... Qe5+ {[%clk 0:01:10.7]} 34. Qxe5+ {[%clk
0:00:30.5]} 34... dxe5 {[%clk 0:01:12.6]} 35. Kg3 {[%clk 0:00:29.3]} 35... c4
{[%clk 0:01:13.6]} 36. Kf3 {[%clk 0:00:29.9]} 36... c3 {[%clk 0:01:13.3]} 37.
Ke3 {[%clk 0:00:31.1]} 37... c2 {[%clk 0:01:12.5]} 38. Kd2 {[%clk 0:00:31.6]}
38... e4 {[%clk 0:01:13.4]} 39. g4 {[%clk 0:00:30.4]} 39... e3+ {[%clk
0:01:14.6]} 40. Kc1 {[%clk 0:00:29.1]} 40... e2 {[%clk 0:01:15.9]} 41. Kd2
{[%clk 0:00:29.4]} 41... e1=Q+ {[%clk 0:01:17.1]} 42. Kxd3 {[%clk 0:00:30.1]}
42... c1=Q {[%clk 0:01:16.7]} 43. Kd4 {[%clk 0:00:28.8]} 43... Qb2+ {[%clk
0:01:15.7]} 0

[Event "Torneo Nuevo Centro. Jornada 10"]
[Site "Chess.com"]
[Date "2020.08.21"]
[Round "1"]
[White "Alvarez Usina, Jordi"]
[Black "Aguado, Pablo Luis"]
[Result "0-1"]
[WhiteElo "1306"]
[BlackElo "1920"]
[TimeControl "180+2"]
[EndTime "10:38:02 PDT"]
[Termination "Victoria de PLAD_2006 por abandono"]

1. d4 {[%clk 0:02:58.2]} 1... d5 {[%clk 0:02:59.9]} 2. Bf4 {[%clk 0:02:54.4]}
2... Nf6 {[%clk 0:02:59.7]} 3. e3 {[%clk 0:02:52.5]} 3... e6 {[%clk 0:03:00.2]}
4. Nf3 {[%clk 0:02:48.7]} 4... c5 {[%clk 0:03:00.4]} 5. c3 {[%clk 0:02:48.8]}
5... Nc6 {[%clk 0:03:01.6]} 6. Bd3 {[%clk 0:02:48.9]} 6... Bd6 {[%clk
0:03:02.4]} 7. Ne5 {[%clk 0:02:46]} 7... O-O {[%clk 0:02:55.3]} 8. Nd2 {[%clk
0:02:44.4]} 8... Bxe5 {[%clk 0:02:53.7]} 9. dxe5 {[%clk 0:02:44.2]} 9... Nd7
{[%clk 0:02:52.9]} 10. Qh5 {[%clk 0:02:28.7]} 10... g6 {[%clk 0:02:51.1]} 11.
Qh6 {[%clk 0:02:14.4]} 11... Ndxe5 {[%clk 0:02:49.3]} 12. Bxe5 {[%clk
0:01:59.4]} 12... Nxe5 {[%clk 0:02:49.7]} 13. Bc2 {[%clk 0:01:59.8]} 13... Qf6
{[%clk 0:02:43.1]} 14. O-O-O {[%clk 0:01:45.1]} 14... a5 {[%clk 0:02:36.1]} 15.
h4 {[%clk 0:01:42.7]} 15... a4 {[%clk 0:02:25.2]} 16. a3 {[%clk 0:01:39.3]}
16... b5 {[%clk 0:02:25]} 17. Rh3 {[%clk 0:01:24]} 17... Ng4 {[%clk 0:02:22.2]}
18. Rf3 {[%clk 0:01:08.3]} 18... Nxh6 {[%clk 0:02:22.1]} 19. Rxf6 {[%clk
0:01:08.5]} 19... Kg7 {[%clk 0:02:13.6]} 20. Rf3 {[%clk 0:01:04.5]} 20... e5
{[%clk 0:02:12.9]} 21. e4 {[%clk 0:00:58.9]} 21... Bg4 {[%clk 0:02:13.2]} 22.
exd5 {[%clk 0:00:55.4]} 22... Bxf3 {[%clk 0:02:14.4]} 23. Nxf3 {[%clk 0:00:55]}
23... f6 {[%clk 0:02:10.8]} 24. d6 {[%clk 0:00:52.9]} 24... Rfd8 {[%clk
0:02:09.6]} 25. d7 {[%clk 0:00:53.1]} 25... Ra7 {[%clk 0:02:08.5]} 26. Rd5
{[%clk 0:00:45.3]} 26... Raxd7 {[%clk 0:02:08.7]} 27. Rxc5 {[%clk 0:00:45.9]}
27... Rd5 {[%clk 0:02:03.1]} 28. Rc7+ {[%clk 0:00:44]} 28... R8d7 {[%clk
0:02:01.9]} 29. Rc8 {[%clk 0:00:37]} 29... Ng4 {[%clk 0:01:53.6]} 30. Be4 {[%clk
0:00:31.6]} 30... Rd1+ {[%clk 0:01:53.3]} 31. Kc2 {[%clk 0:00:28.8]} 31... Nxf2
{[%clk 0:01:54.2]} 32. Bc6 {[%clk 0:00:21.6]} 32... Rd8 {[%clk 0:01:50.2]} 33.
Rc7+ {[%clk 0:00:21.3]} 33... Kg8 {[%clk 0:01:49.4]} 34. Bxb5 {[%clk 0:00:19.3]}
34... e4 {[%clk 0:01:46.4]} 35. Nd4 {[%clk 0:00:17.6]} 35... e3 {[%clk
0:01:42.2]} 36. Be2 {[%clk 0:00:17.2]} 36... Re1 {[%clk 0:01:38.6]} 37. Ra7
{[%clk 0:00:16.4]} 37... Rxe2+ {[%clk 0:01:39.5]} 38. Nxe2 {[%clk 0:00:15.8]}
38... Rd2+ {[%clk 0:01:41.1]} 39. Kc1 {[%clk 0:00:15.4]} 39... Rxe2 {[%clk
0:01:41.3]} 40. Rxa4 {[%clk 0:00:15.5]} 40... Re1+ {[%clk 0:01:42.1]} 41. Kc2
{[%clk 0:00:15.8]} 41... Rd1 {[%clk 0:01:39.1]} 42. Ra8+ {[%clk 0:00:13.7]}
42... Kg7 {[%clk 0:01:39.1]} 43. Re8 {[%clk 0:00:14]} 43... Rd3 {[%clk
0:01:37.1]} 44. c4 {[%clk 0:00:11.7]} 44... Kf7 {[%clk 0:01:38.1]} 45. Rc8
{[%clk 0:00:05.6]} 45... e2 {[%clk 0:01:38.5]} 46. c5 {[%clk 0:00:04.8]} 0

[Event "Torneo Nuevo Centro. Jornada 10"]
[Site "Chess.com"]
[Date "2020.08.21"]
[Round "1"]
[White "Gukasov, Artem"]
[Black "Bendayán Claros, Aaron"]
[Result "0-1"]
[WhiteElo "1443"]
[BlackElo "2003"]
[TimeControl "180+2"]
[EndTime "10:38:06 PDT"]
[Termination "Victoria de Cuajada_Zero por abandono"]

1. e4 {[%clk 0:03:01.4]} 1... c6 {[%clk 0:02:57.9]} 2. d4 {[%clk 0:03:00.5]}
2... d5 {[%clk 0:02:59.8]} 3. exd5 {[%clk 0:03:01.3]} 3... cxd5 {[%clk
0:03:00.1]} 4. c3 {[%clk 0:03:02]} 4... Nc6 {[%clk 0:02:59.2]} 5. Bd3 {[%clk
0:03:02.5]} 5... Nf6 {[%clk 0:02:58.4]} 6. Be3 {[%clk 0:02:59.3]} 6... g6 {[%clk
0:02:58.6]} 7. Nf3 {[%clk 0:02:58.4]} 7... Bg7 {[%clk 0:02:59.4]} 8. Nbd2 {[%clk
0:02:57.5]} 8... O-O {[%clk 0:02:59.9]} 9. O-O {[%clk 0:02:57.6]} 9... Bg4
{[%clk 0:02:56.3]} 10. h3 {[%clk 0:02:56.4]} 10... Bf5 {[%clk 0:02:56.5]} 11.
Qc2 {[%clk 0:02:54.6]} 11... e6 {[%clk 0:02:56.8]} 12. Bxf5 {[%clk 0:02:50.5]}
12... gxf5 {[%clk 0:02:56.3]} 13. Nb3 {[%clk 0:02:46.3]} 13... Ne4 {[%clk
0:02:56.4]} 14. Nbd2 {[%clk 0:02:46.2]} 14... Bf6 {[%clk 0:02:54.7]} 15. Nxe4
{[%clk 0:02:46.1]} 15... fxe4 {[%clk 0:02:56.6]} 16. Nh2 {[%clk 0:02:44.6]}
16... Kh8 {[%clk 0:02:57.2]} 17. Ng4 {[%clk 0:02:41.6]} 17... Bg7 {[%clk
0:02:57.5]} 18. Qd2 {[%clk 0:02:41.4]} 18... f5 {[%clk 0:02:58.3]} 19. Nh2
{[%clk 0:02:32.3]} 19... Qf6 {[%clk 0:02:49.9]} 20. f4 {[%clk 0:02:26]} 20...
Rg8 {[%clk 0:02:40.5]} 21. g4 {[%clk 0:02:22.1]} 21... Qh4 {[%clk 0:02:39.3]}
22. Qf2 {[%clk 0:02:21.8]} 22... Qe7 {[%clk 0:02:30.8]} 23. g5 {[%clk
0:02:17.1]} 23... b5 {[%clk 0:02:27.5]} 24. a3 {[%clk 0:02:09.7]} 24... a5
{[%clk 0:02:27.3]} 25. Kg2 {[%clk 0:02:08.2]} 25... b4 {[%clk 0:02:27.1]} 26.
Rh1 {[%clk 0:01:57.5]} 26... bxc3 {[%clk 0:02:26.6]} 27. bxc3 {[%clk 0:01:55.2]}
27... Rab8 {[%clk 0:02:27]} 28. Qc2 {[%clk 0:01:43.3]} 28... Rb5 {[%clk
0:02:23.7]} 29. Rhb1 {[%clk 0:01:39.3]} 29... Rgb8 {[%clk 0:02:23.2]} 30. a4
{[%clk 0:01:38.3]} 30... R5b7 {[%clk 0:02:16]} 31. h4 {[%clk 0:01:24.1]} 31...
h6 {[%clk 0:02:03.4]} 32. Kg3 {[%clk 0:01:20.6]} 32... Qc7 {[%clk 0:02:01.3]}
33. Nf1 {[%clk 0:01:06.2]} 33... Nxd4 {[%clk 0:01:57.2]} 34. Bxd4 {[%clk
0:00:54.4]} 34... Bxd4 {[%clk 0:01:48.8]} 35. Qc1 {[%clk 0:00:41.4]} 35... Qxc3+
{[%clk 0:01:45.6]} 36. Qxc3 {[%clk 0:00:36]} 36... Bxc3 {[%clk 0:01:47.5]} 37.
Rxb7 {[%clk 0:00:35.2]} 37... Rxb7 {[%clk 0:01:48.3]} 38. Rc1 {[%clk 0:00:35.6]}
38... d4 {[%clk 0:01:49.1]} 39. gxh6 {[%clk 0:00:33.4]} 39... Kh7 {[%clk
0:01:49.5]} 40. Kf2 {[%clk 0:00:29.1]} 40... Rb2+ {[%clk 0:01:46.9]} 41. Kg3
{[%clk 0:00:21.5]} 41... Kxh6 {[%clk 0:01:47.9]} 42. Rd1 {[%clk 0:00:10.7]}
42... Rb4 {[%clk 0:01:47.2]} 43. Nd2 {[%clk 0:00:10.3]} 43... Bxd2 {[%clk
0:01:46.4]} 44. Rxd2 {[%clk 0:00:11.3]} 44... Rxa4 {[%clk 0:01:47]} 45. Rh2
{[%clk 0:00:04.5]} 45... Ra3+ {[%clk 0:01:47.3]} 46. Kf2 {[%clk 0:00:05]} 46...
Ra2+ {[%clk 0:01:48.2]} 0